bitfinex-derivatives/quotes_SOLF0:USTF0_20250228
["timestamp","ask_amount","ask_price","bid_price","bid_amount"]
[1740710983633,1.36683723,128.48,128.13,51.09428435]
[1740710983930,0.05870041,128.33,128.3,0.05681563]
[1740710984331,213.45678368,128.47,128.33,7.7979]
[1740710984527,1.55690487,128.46,128.12,75.95532087]
[1740710984739,1.55690487,128.46,128.13,2.97692235]
[1740710985038,9.94205728,128.44,128.14,1.41600766]
[1740710985338,7.7947,128.4,128.14,1.41600766]
[1740710985538,1.55726855,128.43,128.14,1.41600766]
[1740710985739,1.55726855,128.43,128.28,0.05038515]
[1740710986239,1.55726855,128.43,128.18,235.26]
[1740710986438,1.55726855,128.43,128.34,0.05075436]
[1740710986836,1.55726855,128.43,128.22,5.55211811]
[1740710987136,9.94205728,128.44,128.23,2.97561552]
[1740710987334,9.94205728,128.44,128.37,0.05088492]
[1740710987835,9.94205728,128.44,128.31,9.18971811]
[1740710988039,9.94205728,128.44,128.39,0.0540431]
[1740710988537,9.94205728,128.44,128.39,51.09428435]
[1740710988736,39.76822914,128.55,128.39,51.09428435]
[1740710988938,41.32404399,128.55,128.4,0.05042918]
[1740710989142,1.55593589,128.54,128.4,0.05042918]
[1740710989341,39.76822914,128.55,128.33,1.41390945]
[1740710989542,39.76822914,128.55,128.34,1.5583606]
[1740710989738,39.76822914,128.55,128.46,0.04973085]
[1740710990044,39.76822914,128.55,128.35,178.19245778]
[1740710990244,39.76822914,128.55,128.36,1.41390945]
[1740710990439,39.76822914,128.55,128.49,0.05472753]
[1740710990937,39.76822914,128.55,128.34,178.33690893]
[1740710991144,39.76822914,128.55,128.51,0.05239059]
[1740710991543,1.55593589,128.54,128.32,4.1362]
[1740710991743,1.55593589,128.54,128.32,55.23048435]
[1740710991941,24.89593589,128.54,128.52,6.179e-05]
[1740710992245,24.89593589,128.54,128.32,4.1362]
[1740710992546,1.55593589,128.54,128.32,55.23054614]
[1740710992841,7.79,128.47,128.33,7.7979]
[1740710993042,1.55593589,128.54,128.32,4.1362]
[1740710993449,0.05371546,128.41,128.39,0.0571567]
[1740710993852,7.789,128.49,128.32,4.1362]
[1740710994044,1.55593589,128.54,128.32,55.23054614]
[1740710994349,0.0576466,128.41,128.39,0.0556637]
[1740710994545,1.55593589,128.54,128.32,55.23054614]
[1740710994940,0.05166116,128.41,128.39,0.05830615]
[1740710995345,7.7924,128.43,128.31,11.7445]
[1740710995542,0.0576466,128.41,128.39,0.05173566]
[1740710996049,1.55593589,128.54,128.31,3.9449]
[1740710996255,0.05471623,128.41,128.39,0.05311489]
[1740710996646,1.37203479,128.53,128.31,3.9449]
[1740710996844,306.55617802,128.52,128.31,55.03924614]
[1740710997048,0.05108077,128.41,128.39,0.05408476]
[1740710997248,190.0,128.4,128.39,0.05408476]
[1740710997451,23.41108077,128.41,128.39,0.05408476]
[1740710997652,190.0,128.39,128.31,3.9449]
[1740710998152,0.0576466,128.41,128.31,3.9449]
[1740710998353,190.0,128.48,128.34,0.05211659]
[1740710998553,1.55629912,128.51,128.34,0.05211659]
[1740710998754,1.55629912,128.51,128.34,51.14646273]
[1740710998943,1.55629912,128.51,128.32,3.7419]
[1740710999349,1.55629912,128.51,128.32,7.4966]
[1740710999652,1.55629912,128.51,128.32,54.83624614]
[1740710999954,1.55629912,128.51,128.32,51.09434614]
[1740711000255,1.37348798,128.5,128.4,0.05830265]
[1740711000449,1.55654136,128.49,128.4,2.65e-06]
[1740711000653,7.795,128.39,128.23,5.33796138]
[1740711000853,1.55654136,128.49,128.23,3.922]
[1740711001056,1.55654136,128.49,128.24,1.41581249]
[1740711001252,1.37303199,128.48,128.28,7.8014]
[1740711001551,1.55678368,128.47,128.23,3.922]
[1740711001750,1.37260077,128.46,128.23,55.01634614]
[1740711001946,0.0589279,128.39,128.37,0.05701761]
[1740711002350,1.55702608,128.45,128.24,1.41568905]
[1740711002654,0.04924633,128.39,128.37,0.05857698]
[1740711003051,190.0,128.44,128.25,1.41568905]
[1740711003255,197.7919,128.44,128.35,7.7971]
[1740711003552,1.55702608,128.45,128.37,0.05639559]
[1740711003756,309.30468744,128.52,128.37,0.05639559]
[1740711003959,119.30468744,128.52,128.37,51.09429325]
[1740711004254,119.30468744,128.52,128.38,11.6303]
[1740711004657,3.72905728,128.49,128.38,11.6303]
[1740711004959,3.72905728,128.49,128.42,0.05201434]
[1740711005156,3.72905728,128.56,128.42,51.07860954]
[1740711005350,5.28475111,128.56,128.38,7.5591]
[1740711005560,0.05840979,128.47,128.24,211.92]
[1740711005756,0.05840979,128.47,128.25,9.17174291]
[1740711005961,1.37046821,128.54,128.31,7.7996]
[1740711006258,1.55605695,128.53,128.25,58.83500954]
[1740711006460,7.7932,128.42,128.26,1.41538176]
[1740711006659,0.05714468,128.44,128.41,0.00242159]
[1740711006861,0.05714468,128.44,128.25,7.7564]
[1740711007061,7.793,128.42,128.33,7.7982]
[1740711007362,1.55605695,128.53,128.26,4.1139]
[1740711007662,7.7949,128.39,128.29,7.8008]
[1740711007860,211.86,128.47,128.26,55.19250954]
[1740711008172,211.86,128.47,128.33,0.05256189]
[1740711008173,0.05508872,128.35,128.33,0.05256189]
[1740711008354,1.55690487,128.46,128.33,0.05256189]
[1740711008560,7.7953,128.39,128.29,7.8008]
[1740711008867,5.51450487,128.46,128.27,55.03470954]
[1740711009062,7.798,128.34,128.27,55.03470954]
[1740711009255,190.0,128.33,128.15,211.9]
[1740711009561,190.0,128.32,128.24,7.8035]
[1740711009764,190.05934092,128.32,128.29,0.0507425]
[1740711010059,190.0,128.42,128.29,0.0507425]
[1740711010265,190.0,128.41,128.29,51.12935204]
[1740711010463,190.0,128.41,128.29,51.07860954]
[1740711010762,190.0,128.44,128.16,31.0649]
[1740711010960,190.0,128.44,128.17,2.97606837]
[1740711011163,190.0,128.44,128.18,2.97594663]
[1740711011363,29.82617186,128.5,128.29,0.05606821]
[1740711011565,29.82617186,128.5,128.3,211.9]
[1740711011766,29.82617186,128.5,128.4,7.7941]
[1740711012064,29.82617186,128.5,128.39,0.05216951]
[1740711012266,29.82617186,128.49,128.39,0.05216951]
[1740711012465,31.38271322,128.49,128.32,3.7591]
[1740711012665,31.38271322,128.49,128.32,54.83770954]
[1740711012868,31.38271322,128.49,128.43,0.0586881]
[1740711013166,31.38271322,128.49,128.32,3.7591]
[1740711013566,31.38271322,128.49,128.45,0.05416754]
[1740711013968,31.38271322,128.49,128.33,3.8803]
[1740711014265,31.38271322,128.49,128.46,0.05092225]
[1740711014567,31.38271322,128.49,128.42,7.7928]
[1740711014762,31.38271322,128.49,128.46,0.0561903]
[1740711014969,29.82617186,128.49,128.46,0.0561903]
[1740711015167,246.84820569,128.54,128.46,0.0561903]
[1740711015168,29.82617186,128.59,128.46,0.0561903]
[1740711015564,29.82617186,128.59,128.44,7.6713]
[1740711015866,29.82617186,128.59,128.44,58.74990954]
[1740711016059,29.82617186,128.59,128.51,0.0572269]
[1740711016459,29.82617186,128.59,128.44,7.6713]
[1740711016757,29.82617186,128.59,128.54,0.05203437]
[1740711017161,29.82617186,128.59,128.54,7.7852]
[1740711017162,11.20367186,128.59,128.54,7.7852]
[1740711017362,11.20367186,128.59,128.55,0.05732458]
[1740711017664,190.0,128.62,128.55,0.05732458]
[1740711017867,7.7845,128.56,128.55,0.05732458]
[1740711018064,3.9222,128.61,128.33,211.78]
[1740711018373,1.55520995,128.6,128.54,0.05626201]
[1740711018764,1.55520995,128.6,128.35,1.41377017]
[1740711018964,79.53645829,128.72,128.56,0.04914756]
[1740711019169,3.9222,128.71,128.56,0.04914756]
[1740711019470,3.9222,128.71,128.56,51.07860954]
[1740711019772,5.47608081,128.71,128.62,0.05268013]
[1740711019972,9.61748081,128.71,128.62,0.05268013]
[1740711020269,9.61748081,128.71,128.46,1.41300575]
[1740711020472,9.61748081,128.71,128.46,178.19155408]
[1740711020769,1.55400155,128.7,128.65,6.9e-07]
[1740711020960,7.7826,128.6,128.46,51.07860954]
[1740711021366,1.55400155,128.7,128.46,51.07860954]
[1740711021568,1.3724817,128.69,128.45,211.78]
[1740711021762,1.55424308,128.68,128.45,51.07860954]
[1740711021964,0.0525,128.58,128.36,213.27811779]
[1740711022267,0.0525,128.58,128.42,7.7929]
[1740711022467,305.0,128.57,128.37,3.8979]
[1740711022670,1.55569383,128.56,128.37,3.8979]
[1740711022865,1.55569383,128.56,128.37,54.9765356]
[1740711023274,305.0,128.55,128.37,3.8979]
[1740711023568,0.05630647,128.48,128.45,0.05622059]
[1740711023965,190.0,128.47,128.38,1.41433195]
[1740711024165,190.0,128.47,128.45,0.05951294]
[1740711024472,0.04916713,128.48,128.45,0.05951294]
[1740711024973,1.55593589,128.54,128.39,211.74]
[1740711025172,1.55593589,128.54,128.4,1.41435788]
[1740711025568,190.0,128.57,128.4,52.49299348]
[1740711025769,190.0,128.57,128.41,1.41435788]
[1740711026170,0.05778871,128.5,128.48,0.05130005]
[1740711026370,3.9665,128.65,128.48,0.05130005]
[1740711026566,5.52110551,128.65,128.48,51.0786356]
[1740711026776,1.55472636,128.64,128.48,51.0786356]
[1740711027075,190.0,128.63,128.39,388.51854833]
[1740711027373,190.0,128.62,128.4,1.41363264]
[1740711027574,190.0,128.62,128.5,0.05755803]
[1740711027970,190.0,128.62,128.41,1.41363264]
[1740711028174,190.0,128.62,128.42,3.9637]
[1740711028373,190.0,128.62,128.55,0.05368908]
[1740711028569,7.7834,128.58,128.55,0.05368908]
[1740711028774,190.0,128.62,128.42,3.9637]
[1740711028977,190.0,128.63,128.55,0.05373074]
[1740711029172,190.0,128.62,128.55,0.05373074]
[1740711029375,305.0,128.61,128.43,1.41329849]
[1740711029573,193.7666,128.6,128.42,3.9637]
[1740711029775,190.0,128.59,128.57,0.0537973]
[1740711029975,190.0,128.63,128.43,1.41380716]
[1740711030271,190.0,128.63,128.57,0.05811131]
[1740711030479,1.55472636,128.64,128.57,0.05811131]
[1740711030677,1.55472636,128.64,128.51,211.68]
[1740711030882,7.6808,128.76,128.59,0.05777241]
[1740711031380,7.6808,128.76,128.53,5.43863726]
[1740711031577,3.848,128.76,128.66,0.05858404]
[1740711031779,3.848,128.76,128.66,51.13721964]
[1740711031976,3.848,128.76,128.66,51.0786356]
[1740711032380,3.848,128.76,128.7,0.05024516]
[1740711033084,3.848,128.76,128.54,1.41203586]
[1740711033386,3.848,128.76,128.54,52.49067146]
[1740711033387,0.05081538,128.74,128.54,52.49067146]
[1740711033584,3.848,128.76,128.55,1.41203586]
[1740711034180,3.848,128.76,128.55,178.19058419]
[1740711034484,0.05081538,128.67,128.64,0.05795051]
[1740711035085,7.7781,128.67,128.54,7.7856]
[1740711035278,0.05081538,128.67,128.64,0.05242107]
[1740711035478,7.6945,128.74,128.53,55.1051356]
[1740711035677,7.6945,128.74,128.64,0.0524683]
[1740711035877,0.05081538,128.67,128.53,4.0265]
[1740711036080,7.7789,128.66,128.53,4.0265]
[1740711036285,7.6945,128.74,128.53,4.0265]
[1740711036890,7.6945,128.74,128.54,1.4123137]
[1740711037077,7.6945,128.74,128.54,51.0786356]
[1740711037283,0.05374402,128.65,128.62,0.05170291]
[1740711037484,0.05374402,128.65,128.49,3.7545]
[1740711037785,1.5536394,128.73,128.49,3.7545]
[1740711037988,1.36614264,128.72,128.49,54.8331356]
[1740711038281,1.55388081,128.71,128.49,54.8331356]
[1740711038587,1.36614264,128.7,128.41,211.58]
[1740711038886,1.36614264,128.7,128.59,3.75e-06]
[1740711038887,0.05877572,128.61,128.59,3.75e-06]
[1740711039082,1.36614264,128.7,128.4,52.63626799]
[1740711039390,1.5541223,128.69,128.41,1.41394175]
[1740711039683,1.36614264,128.68,128.4,51.0786356]
[1740711039885,5.60676387,128.67,128.41,1.41387851]
[1740711040188,0.05466229,128.55,128.53,0.05294412]
[1740711040686,23.34,128.55,128.39,12.0065]
[1740711040889,3.9304,128.54,128.53,6.516e-05]
[1740711041187,7.9357,128.54,128.34,3.918]
[1740711041377,1.55605695,128.53,128.34,3.918]
[1740711041579,1.55605695,128.53,128.35,1.41422918]
[1740711042280,1.55605695,128.53,128.43,0.05155707]
[1740711042583,7.9357,128.62,128.34,27.218]
[1740711042888,3.9304,128.62,128.35,2.97179589]
[1740711043085,3.9304,128.62,128.36,2.9716745]
[1740711043281,1.55508902,128.61,128.37,1.41355671]
[1740711043486,1.55508902,128.61,128.37,52.49219231]
[1740711043784,0.05738315,128.5,128.48,0.05903935]
[1740711044191,190.0,128.59,128.48,51.0786356]
[1740711044483,8.1123,128.6,128.48,51.0786356]
[1740711044484,0.05537227,128.5,128.48,0.0508251]
[1740711044689,190.0,128.59,128.36,1.55811779]
[1740711044890,8.1123,128.6,128.36,51.0786356]
[1740711045090,7.7887,128.49,128.48,1.04e-05]
[1740711045489,7.7887,128.49,128.34,54.9966356]
[1740711045490,27.3118,128.49,128.34,3.918]
[1740711045692,7.7947,128.4,128.34,51.0786356]
[1740711045882,8.0267,128.48,128.34,51.0786356]
[1740711046086,8.0267,128.48,128.24,7.9312]
[1740711046087,1.55678368,128.47,128.24,7.9312]
[1740711046282,1.55678368,128.47,128.26,116.52175342]
[1740711046489,0.04988949,128.42,128.26,116.52175342]
[1740711046788,1.55678368,128.47,128.26,116.52175342]
[1740711047186,1.55678368,128.47,128.26,167.60038902]
[1740711047786,7.7973,128.35,128.27,7.8015]
[1740711048194,1.55678368,128.47,128.35,0.05499143]
[1740711048492,0.05639625,128.32,128.26,116.52175342]
[1740711048691,0.05639625,128.32,128.28,7.8009]
[1740711048893,1.55678368,128.47,128.26,51.0786356]
[1740711049090,0.0562303,128.31,128.29,0.0515394]
[1740711049592,1.55678368,128.47,128.25,3.822]
[1740711049789,0.05718105,128.31,128.29,0.04922471]
[1740711050192,1.55678368,128.47,128.25,3.822]
[1740711050387,1.55678368,128.47,128.25,51.0786356]
[1740711050595,0.04970162,128.31,128.29,0.05308598]
[1740711050994,1.55678368,128.47,128.25,3.854]
[1740711051495,1.55678368,128.47,128.29,0.05461741]
[1740711051693,1.55678368,128.47,128.25,3.854]
[1740711052194,1.55678368,128.47,128.25,54.9326356]
[1740711052388,1.55678368,128.47,128.26,7.8021]
[1740711052588,1.55678368,128.47,128.25,3.854]
[1740711052786,0.05763086,128.37,128.35,4.202e-05]
[1740711052990,197.7966,128.36,128.35,4.202e-05]
[1740711053293,197.9205,128.36,128.15,11.5237]
[1740711053490,1.55678368,128.47,128.16,1.41625585]
[1740711053694,7.9205,128.46,128.16,1.41625585]
[1740711053893,7.9205,128.46,128.16,52.49489145]
[1740711054195,0.05458669,128.33,128.3,0.05764853]
[1740711054586,191.55702608,128.45,128.15,11.5237]
[1740711054789,1.55702608,128.45,128.16,1.41620842]
[1740711054986,1.55702608,128.45,128.3,7.8003]
[1740711055186,1.55702608,128.45,128.29,0.0584354]
[1740711055388,1.55702608,128.45,128.17,17.03207598]
[1740711055586,1.55702608,128.45,128.18,1.41577598]
[1740711055989,1.55702608,128.45,128.19,1.41577598]
[1740711056190,7.79,128.47,128.37,7.7955]
[1740711056393,3.9866,128.53,128.38,11.9185]
[1740711056594,3.9844,128.56,128.38,11.9185]
[1740711056791,5.54009383,128.56,128.38,62.9971356]
[1740711056994,0.05082291,128.47,128.38,62.9971356]
[1740711057295,0.05082291,128.47,128.46,0.05676361]
[1740711057593,1.55581485,128.55,128.38,11.9185]
[1740711057791,0.0556421,128.48,128.38,62.9971356]
[1740711058090,0.0556421,128.48,128.45,0.05586588]
[1740711058290,1.55581485,128.55,128.33,3.7431]
[1740711058798,0.05007451,128.48,128.33,3.7431]
[1740711058993,1.55581485,128.55,128.34,7.8151]
[1740711059194,7.795,128.39,128.34,7.8151]
[1740711059493,1.55581485,128.55,128.34,58.8937356]
[1740711059689,0.05017787,128.38,128.35,0.04941616]
[1740711060094,211.92,128.48,128.24,11.9504]
[1740711060290,0.05544508,128.38,128.35,0.05549187]
[1740711060688,9.30218368,128.47,128.24,11.9504]
[1740711061194,0.05816646,128.38,128.35,0.05760228]
[1740711061594,7.7943,128.4,128.24,11.9504]
[1740711061793,9.30218368,128.47,128.24,11.9504]
[1740711061997,0.05007011,128.38,128.35,0.05950468]
[1740711062487,9.30218368,128.47,128.35,23.38]
[1740711062488,5.32448368,128.47,128.35,23.38]
[1740711062686,0.05000575,128.38,128.36,4.0068]
[1740711062889,1.55678368,128.47,128.36,207.94994833]
[1740711063096,3.8227,128.56,128.37,4.0283]
[1740711063287,3.8227,128.56,128.44,7.7916]
[1740711063493,3.7485,128.64,128.45,11.8397]
[1740711063693,7.5712,128.64,128.45,11.8397]
[1740711063898,30.08272139,128.63,128.45,11.8397]
[1740711064096,30.08272139,128.63,128.53,0.0570344]
[1740711064097,0.05531937,128.56,128.53,0.0570344]
[1740711064299,30.08272139,128.63,128.53,0.0570344]
[1740711064498,30.08272139,128.63,128.53,51.02862985]
[1740711064797,30.08272139,128.63,128.45,11.8397]
[1740711064992,7.7841,128.57,128.45,70.65942985]
[1740711065192,30.08272139,128.63,128.45,11.8397]
[1740711065390,30.08272139,128.63,128.46,1.41332327]
[1740711065589,30.08272139,128.63,128.5,0.05829137]
[1740711065795,30.08272139,128.63,128.45,35.1797]
[1740711065796,30.08272139,128.63,128.48,211.84]
[1740711066001,30.08272139,128.63,128.52,7.7866]
[1740711066200,4.0158,128.68,128.48,211.84]
[1740711066401,4.0158,128.68,128.49,1.41281548]
[1740711066595,9.98297302,128.78,128.49,1.41281548]
[1740711066796,4.0158,128.74,128.49,52.44144533]
[1740711066992,4.0158,128.74,128.57,0.05708113]
[1740711067197,4.0158,128.74,128.49,1.41281548]
[1740711067505,4.0158,128.74,128.5,1.41281548]
[1740711067506,1.5536394,128.73,128.5,1.41281548]
[1740711067798,1.5536394,128.73,128.51,1.41266996]
[1740711068002,1.5536394,128.73,128.52,1.41266996]
[1740711068195,1.5536394,128.73,128.61,0.05041172]
[1740711068399,0.05249566,128.63,128.61,0.05041172]
[1740711068600,1.5536394,128.73,128.49,178.19155353]
[1740711068801,1.5536394,128.73,128.5,1.4130052]
[1740711069000,0.05633691,128.63,128.61,0.05383273]
[1740711069199,7.7809,128.62,128.61,0.05383273]
[1740711069394,23.32,128.63,128.51,5.2580052]
[1740711069594,0.05615775,128.63,128.6,0.05627393]
[1740711069895,23.32,128.63,128.45,7.8114]
[1740711070101,1.55496812,128.62,128.45,58.84002985]
[1740711070299,1.55496812,128.62,128.45,7.8114]
[1740711070594,1.55496812,128.62,128.45,58.84002985]
[1740711070798,1.55496812,128.62,128.45,7.8114]
[1740711071004,0.04988196,128.55,128.52,0.05562031]
[1740711071297,211.92,128.75,128.52,0.05562031]
[1740711071500,1.55351871,128.74,128.46,1.41318515]
[1740711071893,1.55351871,128.74,128.46,52.441815]
[1740711072097,1.55351871,128.74,128.47,1.41318515]
[1740711072398,0.05474852,128.61,128.59,5.089e-05]
[1740711072794,0.05474852,128.61,128.45,55.03542985]
[1740711072795,1.55520995,128.6,128.45,4.0068]
[1740711073103,1.55520995,128.6,128.36,4.1392]
[1740711073305,1.3606466,128.59,128.37,36.17853343]
[1740711073503,1.55545185,128.58,128.37,36.17853343]
[1740711073701,1.3606466,128.57,128.37,36.17853343]
[1740711073895,1.55569383,128.56,128.37,87.20716328]
[1740711074103,0.05506717,128.49,128.46,0.05486857]
[1740711074500,1.55569383,128.56,128.38,1.41426646]
[1740711075206,11.5958,128.71,128.38,1.41426646]
[1740711075506,2.91705941,128.7,128.39,1.55775371]
[1740711075701,0.0543451,128.56,128.53,0.05253701]
[1740711076206,1.5541223,128.69,128.41,1.41389768]
[1740711076399,1.3626106,128.68,128.41,3.8521]
[1740711076601,0.05830114,128.56,128.53,0.05429508]
[1740711076802,0.05830114,128.56,128.41,3.8521]
[1740711076997,190.0,128.55,128.41,54.88072985]
[1740711077907,190.0,128.54,128.41,54.88072985]
[1740711078111,0.05097714,128.49,128.47,0.04947795]
[1740711078410,190.0,128.54,128.47,0.04947795]
[1740711078612,7.8005,128.59,128.47,0.04947795]
[1740711078613,190.0,128.53,128.47,0.04947795]
[1740711078911,0.0554928,128.49,128.37,3.999]
[1740711079111,190.0,128.48,128.3,3.8058]
[1740711079315,190.0,128.47,128.3,58.60842985]
[1740711079709,190.0,128.46,128.3,11.5899]
[1740711080011,190.0,128.46,128.3,62.61852985]
[1740711080216,0.05126672,128.4,128.37,0.05776798]
[1740711080415,1.55605695,128.53,128.37,0.05776798]
[1740711080616,1.55605695,128.53,128.37,51.02862985]
[1740711081514,1.55605695,128.53,128.3,11.5899]
[1740711081711,0.0490066,128.46,128.44,0.05952686]
[1740711082216,3.7916,128.52,128.31,1.41498378]
[1740711082405,1.55629912,128.51,128.31,52.44361363]
[1740711082609,0.05894108,128.46,128.44,0.05124954]
[1740711083117,1.55629912,128.51,128.31,1.41498378]
[1740711083311,0.05558773,128.46,128.44,0.05317674]
[1740711083607,1.55629912,128.51,128.3,11.5899]
[1740711083813,1.55629912,128.51,128.31,1.41486121]
[1740711084014,0.05721446,128.46,128.44,0.05776442]
[1740711084207,1.55629912,128.51,128.33,1.41486121]
[1740711084619,0.05720058,128.46,128.44,0.05296631]
[1740711084819,1.55629912,128.51,128.44,0.05296631]
[1740711085010,3.8664,128.58,128.33,1.41486121]
[1740711085215,1.55557283,128.57,128.33,52.44349106]
[1740711085414,7.7883,128.5,128.34,1.41486121]
[1740711085713,1.55557283,128.57,128.34,1.41486121]
[1740711085911,7.7888,128.49,128.37,7.7959]
[1740711086220,0.05693489,128.43,128.41,0.05522366]
[1740711086616,1.55557283,128.57,128.39,7.6722]
[1740711086817,1.3632391,128.56,128.39,58.70082985]
[1740711087022,0.05239486,128.43,128.41,0.05290522]
[1740711087218,1.55581485,128.55,128.41,0.05290522]
[1740711087416,1.55581485,128.55,128.39,7.6722]
[1740711088121,1.55581485,128.55,128.39,58.70082985]
[1740711088621,0.05512579,128.48,128.39,32.60567212]
[1740711088822,0.05512579,128.48,128.22,211.82]
[1740711089120,211.82,128.48,128.23,1.41568926]
[1740711089326,11.975,128.47,128.23,34.02136138]
[1740711089719,11.975,128.47,128.24,1.41568926]
[1740711090020,0.05774512,128.36,128.34,0.04934653]
[1740711090520,1.55690487,128.46,128.22,211.82]
[1740711090826,0.05141321,128.36,128.34,0.05083792]
[1740711091418,1.55690487,128.46,128.22,211.82]
[1740711091719,0.05627429,128.36,128.34,0.05123198]
[1740711092322,1.55690487,128.46,128.22,211.82]
[1740711092521,0.05445424,128.36,128.34,0.05018287]
[1740711092917,190.0,128.45,128.24,1.41558612]
[1740711093521,1.55690487,128.46,128.24,1.41558612]
[1740711093522,1.55690487,128.46,128.34,7.7973]
[1740711093818,1.55690487,128.46,128.35,3.9258]
[1740711094222,0.05049355,128.41,128.39,0.05517627]
[1740711094717,7.7942,128.4,128.39,7.627e-05]
[1740711094921,1.55690487,128.46,128.39,7.627e-05]
[1740711095226,0.05943549,128.41,128.39,7.627e-05]
[1740711095421,1.55690487,128.46,128.39,7.627e-05]
[1740711096022,0.05955086,128.44,128.39,7.627e-05]
[1740711097121,9.98297302,128.6,128.39,7.627e-05]
[1740711097322,7.9551,128.59,128.39,7.627e-05]
[1740711097624,7.9551,128.59,128.36,1.41548142]
[1740711098417,0.05419825,128.49,128.46,0.05565565]
[1740711098616,7.9551,128.59,128.46,0.05565565]
[1740711098818,9.98297302,128.6,128.46,176.77854833]
[1740711099017,7.7868,128.67,128.47,7.7905]
[1740711099222,7.7868,128.67,128.48,1.413237]
[1740711099422,3.9208,128.67,128.48,178.19178533]
[1740711099623,40.06569441,128.68,128.49,1.413237]
[1740711099826,40.06569441,128.68,128.56,0.05590477]
[1740711100326,40.06569441,128.68,128.56,32.60567212]
[1740711100522,40.06569441,128.68,128.61,0.05183531]
[1740711100918,40.06569441,128.68,128.61,32.65750743]
[1740711101118,40.06569441,128.68,128.61,0.05183531]
[1740711101319,3.9208,128.67,128.61,0.05183531]
[1740711101522,190.0,128.66,128.47,7.7905]
[1740711101825,190.0,128.65,128.47,40.39617212]
[1740711102129,1.55472636,128.64,128.47,40.39617212]
[1740711102323,1.55472636,128.64,128.47,7.7905]
[1740711102824,1.55472636,128.64,128.54,0.05971238]
[1740711103130,190.0,128.73,128.54,0.05971238]
[1740711103326,7.703,128.79,128.48,1.41318685]
[1740711103523,7.7742,128.74,128.6,7.782]
[1740711103724,7.703,128.79,128.61,8.2587]
[1740711103924,7.703,128.79,128.61,12.103]
[1740711104122,7.7734,128.75,128.62,7.7808]
[1740711104329,7.7734,128.75,128.61,12.103]
[1740711104530,7.7736,128.74,128.69,0.05339541]
[1740711104731,7.703,128.79,128.69,0.05339541]
[1740711104926,7.703,128.79,128.61,12.103]
[1740711105133,1.55303618,128.78,128.61,44.70867212]
[1740711105334,1.35999276,128.77,128.73,6.052e-05]
[1740711105528,1.35999276,128.77,128.61,12.103]
[1740711105529,1.55327741,128.76,128.61,44.70867212]
[1740711105729,1.55327741,128.76,128.61,36.72657212]
[1740711105934,1.35909303,128.75,128.5,11.9946]
[1740711106126,1.55351871,128.74,128.5,11.9946]
[1740711106331,7.781,128.62,128.5,11.9946]
[1740711106636,0.05367326,128.63,128.61,0.05787342]
[1740711107134,3.7851,128.73,128.5,11.9946]
[1740711107430,0.05571208,128.63,128.61,0.05003016]
[1740711107831,1.55376009,128.72,128.5,11.9946]
[1740711108030,1.55376009,128.72,128.51,1.4129186]
[1740711108234,0.05380601,128.63,128.61,0.0561275]
[1740711108735,0.05380601,128.63,128.5,44.60027212]
[1740711108736,212.97928827,128.71,128.5,11.9946]
[1740711108936,0.05571208,128.63,128.61,1.81e-05]
[1740711109136,0.05571208,128.63,128.5,32.60567212]
[1740711109334,1.35928827,128.69,128.45,211.66]
[1740711109731,1.35928827,128.69,128.46,1.4134924]
[1740711109939,1.55424308,128.68,128.47,1.41334088]
[1740711110138,2.91287726,128.68,128.46,32.60567212]
[1740711110437,0.0507309,128.59,128.56,0.05881425]
[1740711110842,4.0212,128.65,128.45,211.66]
[1740711111036,191.55472636,128.64,128.45,244.26567212]
[1740711111336,0.05671305,128.59,128.56,0.05372389]
[1740711111532,1.55484723,128.63,128.46,1.41370622]
[1740711111839,4.0212,128.65,128.46,1.41370622]
[1740711112039,0.05061356,128.59,128.56,0.05918264]
[1740711112237,11.8117,128.7,128.56,0.05918264]
[1740711112434,11.8117,128.7,128.46,1.41370622]
[1740711112639,375.62088239,128.8,128.46,2.97061109]
[1740711112833,7.9291,128.76,128.47,2.9704899]
[1740711113039,7.7766,128.7,128.6,7.7819]
[1740711113237,7.9291,128.76,128.61,3.9146]
[1740711113442,0.05006753,128.66,128.64,0.05468045]
[1740711113944,7.9291,128.76,128.61,3.9146]
[1740711114244,0.05358409,128.66,128.64,0.05743222]
[1740711114441,7.9291,128.76,128.62,3.9758]
[1740711114736,4.0212,128.76,128.64,0.05410857]
[1740711115036,1.55315679,128.77,128.64,176.8326569]
[1740711115240,1.55315679,128.77,128.73,7.7742]
[1740711115543,1.55315679,128.77,128.62,3.9758]
[1740711115733,40.06569441,128.8,128.63,1.41123994]